{"text_format":"3","workbook":"xlsx","n_sheets":4,"sheets":["Pulpit nawigacyjny","Budżet","Ustawienia","Dane wykresu"],"not_rendered":{"charts":2,"images":1,"defined_names":42},"read":"whole","date_system":"1900"}

{"sheet":"Pulpit nawigacyjny","index":0,"n_rows":13,"n_cols":14,"rows_kept":13,"merged":[[2,0,4,2],[6,0,8,2],[10,0,12,2]]}
[{"$nulls":13},{"$f":"\" INTERAKCYJNY BUDŻET \"&NazwaBudżetu","v":" INTERAKCYJNY BUDŻET RODZINA ROLECKICH 2012"}]
[]
[{"$f":"'Dane wykresu'!C38","v":{"v":4000,"d":"4,000 zł"}}]
[]
[{"$nulls":3},"przychód"]
[]
[{"$f":"'Dane wykresu'!C39","v":{"v":5933,"d":"5,933 zł"}}]
[]
[{"$nulls":3},"wydatki"]
[]
[{"$f":"'Dane wykresu'!D40&'Dane wykresu'!C40&\" zł\"","v":"-1933 zł"}]
[]
[{"$nulls":3},"przepływ gotówkowy"]

{"sheet":"Budżet","index":1,"n_rows":131,"n_cols":16,"rows_kept":131,"merged":[[18,1,18,13],[27,1,27,13],[36,1,36,13],[45,1,45,13],[54,1,54,13],[61,1,61,13],[68,1,68,13],[75,1,75,13],[82,1,82,13],[89,1,89,13],[96,1,96,13],[103,1,103,13],[110,1,110,13],[117,1,117,13],[124,1,124,13]]}
[null,null,"sty","lut","mar","kwi","maj","cze","lip","się","wrz","paź","lis","gru","rok","średnio"]
[]
[]
[]
[null,"Saldo początkowe",1000]
[null,"Łączny przychód",{"$f":"SUM(tblDochód[jan])","v":4222},{"$f":"SUM(tblDochód[feb])","v":9033},{"$f":"SUM(tblDochód[mar])","v":4000},{"$f":"SUM(tblDochód[apr])","v":4045},{"$f":"SUM(tblDochód[may])","v":9000},{"$f":"SUM(tblDochód[jun])","v":1525},{"$f":"SUM(tblDochód[jul])","v":1500},{"$f":"SUM(tblDochód[aug])","v":6500},{"$f":"SUM(tblDochód[sep])","v":4000},{"$f":"SUM(tblDochód[oct])","v":4000},{"$f":"SUM(tblDochód[nov])","v":9000},{"$f":"SUM(tblDochód[dec])","v":4000},{"$f":"SUM(tblDochód[year])","v":60825},{"$f":"O6/12","v":{"v":5068.75,"d":"5069"}}]
[null,"Łączne wydatki",{"$f":"SUM(KategoriaWydatków_01[jan],KategoriaWydatków_02[jan],KategoriaWydatków_03[jan],KategoriaWydatków_04[jan],KategoriaWydatków_05[jan],KategoriaWydatków_06[jan],KategoriaWydatków_07[jan],KategoriaWydatków_08[jan],KategoriaWydatków_09[jan],KategoriaWydatków_10[jan],KategoriaWydatków_11[jan],KategoriaWydatków_12[jan],KategoriaWydatków_13[jan],KategoriaWydatków_14[jan],KategoriaWydatków_15[jan])","v":7936},{"$f":"SUM(KategoriaWydatków_01[feb],KategoriaWydatków_02[feb],KategoriaWydatków_03[feb],KategoriaWydatków_04[feb],KategoriaWydatków_05[feb],KategoriaWydatków_06[feb],KategoriaWydatków_07[feb],KategoriaWydatków_08[feb],KategoriaWydatków_09[feb],KategoriaWydatków_10[feb],KategoriaWydatków_11[feb],KategoriaWydatków_12[feb],KategoriaWydatków_13[feb],KategoriaWydatków_14[feb],KategoriaWydatków_15[feb])","v":5243},{"$f":"SUM(KategoriaWydatków_01[mar],KategoriaWydatków_02[mar],KategoriaWydatków_03[mar],KategoriaWydatków_04[mar],KategoriaWydatków_05[mar],KategoriaWydatków_06[mar],KategoriaWydatków_07[mar],KategoriaWydatków_08[mar],KategoriaWydatków_09[mar],KategoriaWydatków_10[mar],KategoriaWydatków_11[mar],KategoriaWydatków_12[mar],KategoriaWydatków_13[mar],KategoriaWydatków_14[mar],KategoriaWydatków_15[mar])","v":5933},{"$f":"SUM(KategoriaWydatków_01[apr],KategoriaWydatków_02[apr],KategoriaWydatków_03[apr],KategoriaWydatków_04[apr],KategoriaWydatków_05[apr],KategoriaWydatków_06[apr],KategoriaWydatków_07[apr],KategoriaWydatków_08[apr],KategoriaWydatków_09[apr],KategoriaWydatków_10[apr],KategoriaWydatków_11[apr],KategoriaWydatków_12[apr],KategoriaWydatków_13[apr],KategoriaWydatków_14[apr],KategoriaWydatków_15[apr])","v":5858},{"$f":"SUM(KategoriaWydatków_01[may],KategoriaWydatków_02[may],KategoriaWydatków_03[may],KategoriaWydatków_04[may],KategoriaWydatków_05[may],KategoriaWydatków_06[may],KategoriaWydatków_07[may],KategoriaWydatków_08[may],KategoriaWydatków_09[may],KategoriaWydatków_10[may],KategoriaWydatków_11[may],KategoriaWydatków_12[may],KategoriaWydatków_13[may],KategoriaWydatków_14[may],KategoriaWydatków_15[may])","v":5468},{"$f":"SUM(KategoriaWydatków_01[jun],KategoriaWydatków_02[jun],KategoriaWydatków_03[jun],KategoriaWydatków_04[jun],KategoriaWydatków_05[jun],KategoriaWydatków_06[jun],KategoriaWydatków_07[jun],KategoriaWydatków_08[jun],KategoriaWydatków_09[jun],KategoriaWydatków_10[jun],KategoriaWydatków_11[jun],KategoriaWydatków_12[jun],KategoriaWydatków_13[jun],KategoriaWydatków_14[jun],KategoriaWydatków_15[jun])","v":5118},{"$f":"SUM(KategoriaWydatków_01[jul],KategoriaWydatków_02[jul],KategoriaWydatków_03[jul],KategoriaWydatków_04[jul],KategoriaWydatków_05[jul],KategoriaWydatków_06[jul],KategoriaWydatków_07[jul],KategoriaWydatków_08[jul],KategoriaWydatków_09[jul],KategoriaWydatków_10[jul],KategoriaWydatków_11[jul],KategoriaWydatków_12[jul],KategoriaWydatków_13[jul],KategoriaWydatków_14[jul],KategoriaWydatków_15[jul])","v":5743},{"$f":"SUM(KategoriaWydatków_01[aug],KategoriaWydatków_02[aug],KategoriaWydatków_03[aug],KategoriaWydatków_04[aug],KategoriaWydatków_05[aug],KategoriaWydatków_06[aug],KategoriaWydatków_07[aug],KategoriaWydatków_08[aug],KategoriaWydatków_09[aug],KategoriaWydatków_10[aug],KategoriaWydatków_11[aug],KategoriaWydatków_12[aug],KategoriaWydatków_13[aug],KategoriaWydatków_14[aug],KategoriaWydatków_15[aug])","v":5353},{"$f":"SUM(KategoriaWydatków_01[sep],KategoriaWydatków_02[sep],KategoriaWydatków_03[sep],KategoriaWydatków_04[sep],KategoriaWydatków_05[sep],KategoriaWydatków_06[sep],KategoriaWydatków_07[sep],KategoriaWydatków_08[sep],KategoriaWydatków_09[sep],KategoriaWydatków_10[sep],KategoriaWydatków_11[sep],KategoriaWydatków_12[sep],KategoriaWydatków_13[sep],KategoriaWydatków_14[sep],KategoriaWydatków_15[sep])","v":5983},{"$f":"SUM(KategoriaWydatków_01[oct],KategoriaWydatków_02[oct],KategoriaWydatków_03[oct],KategoriaWydatków_04[oct],KategoriaWydatków_05[oct],KategoriaWydatków_06[oct],KategoriaWydatków_07[oct],KategoriaWydatków_08[oct],KategoriaWydatków_09[oct],KategoriaWydatków_10[oct],KategoriaWydatków_11[oct],KategoriaWydatków_12[oct],KategoriaWydatków_13[oct],KategoriaWydatków_14[oct],KategoriaWydatków_15[oct])","v":5943},{"$f":"SUM(KategoriaWydatków_01[nov],KategoriaWydatków_02[nov],KategoriaWydatków_03[nov],KategoriaWydatków_04[nov],KategoriaWydatków_05[nov],KategoriaWydatków_06[nov],KategoriaWydatków_07[nov],KategoriaWydatków_08[nov],KategoriaWydatków_09[nov],KategoriaWydatków_10[nov],KategoriaWydatków_11[nov],KategoriaWydatków_12[nov],KategoriaWydatków_13[nov],KategoriaWydatków_14[nov],KategoriaWydatków_15[nov])","v":5058},{"$f":"SUM(KategoriaWydatków_01[dec],KategoriaWydatków_02[dec],KategoriaWydatków_03[dec],KategoriaWydatków_04[dec],KategoriaWydatków_05[dec],KategoriaWydatków_06[dec],KategoriaWydatków_07[dec],KategoriaWydatków_08[dec],KategoriaWydatków_09[dec],KategoriaWydatków_10[dec],KategoriaWydatków_11[dec],KategoriaWydatków_12[dec],KategoriaWydatków_13[dec],KategoriaWydatków_14[dec],KategoriaWydatków_15[dec])","v":4958},{"$f":"SUM(KategoriaWydatków_01[year],KategoriaWydatków_02[year],KategoriaWydatków_03[year],KategoriaWydatków_04[year],KategoriaWydatków_05[year],KategoriaWydatków_06[year],KategoriaWydatków_07[year],KategoriaWydatków_08[year],KategoriaWydatków_09[year],KategoriaWydatków_10[year],KategoriaWydatków_11[year],KategoriaWydatków_12[year],KategoriaWydatków_13[year],KategoriaWydatków_14[year],KategoriaWydatków_15[year])","v":68594},{"$f":"O7/12","v":{"v":5716.166666666667,"d":"5716"}}]
[null,"Przychód netto",{"$f":"C6-C7","v":-3714},{"$f":"D6-D7","v":3790},-1933,-1813,3532,-3593,-4243,1147,-1983,-1943,3942,-958,-7769,{"$f":"O8/12","v":{"v":-647.4166666666666,"d":"-647"}}]
[null,"ŁĄCZNY PRZEPŁYW GOTÓWKOWY",{"$f":"C5+C6-C7","v":-2714},{"$f":"C9+D6-D7","v":1076},{"$f":"D9+E6-E7","v":-857},-2670,862,-2731,-6974,-5827,-7810,-9753,-5811,-6769]
[]
[]
[null,"przychód"]
[null,"Wynagrodzenia i napiwki",4000,4000,4000,4000,4000,1000,1000,1000,4000,4000,4000,4000,{"$f":"SUM(tblDochód[[#This Row],[jan]:[dec]])","v":39000},{"$f":"tblDochód[[#This Row],[year]]/12","v":3250}]
[null,"Przychód z tytułu odsetek",222,33,null,45,null,25,{"$nulls":6},{"$f":"SUM(tblDochód[[#This Row],[jan]:[dec]])","v":325},{"$f":"tblDochód[[#This Row],[year]]/12","v":{"v":27.083333333333332,"d":"27"}}]
[null,"Dywidendy",null,5000,null,null,5000,null,null,5000,null,null,5000,null,{"$f":"SUM(tblDochód[[#This Row],[jan]:[dec]])","v":20000},{"$f":"tblDochód[[#This Row],[year]]/12","v":{"v":1666.6666666666667,"d":"1667"}}]
[null,"zwroty kosztów",{"$nulls":5},500,500,500,{"$nulls":4},{"$f":"SUM(tblDochód[[#This Row],[jan]:[dec]])","v":1500},{"$f":"tblDochód[[#This Row],[year]]/12","v":125}]
[null,"Inne",{"$nulls":12},{"$f":"SUM(tblDochód[[#This Row],[jan]:[dec]])","v":0},{"$f":"tblDochód[[#This Row],[year]]/12","v":0}]
[null,"ŁĄCZNY PRZYCHÓD",{"$f":"SUM(tblDochód[jan])","v":4222},{"$f":"SUM(tblDochód[feb])","v":9033},{"$f":"SUM(tblDochód[mar])","v":4000},{"$f":"SUM(tblDochód[apr])","v":4045},{"$f":"SUM(tblDochód[may])","v":9000},{"$f":"SUM(tblDochód[jun])","v":1525},{"$f":"SUM(tblDochód[jul])","v":1500},{"$f":"SUM(tblDochód[aug])","v":6500},{"$f":"SUM(tblDochód[sep])","v":4000},{"$f":"SUM(tblDochód[oct])","v":4000},{"$f":"SUM(tblDochód[nov])","v":9000},{"$f":"SUM(tblDochód[dec])","v":4000},{"$f":"SUM(tblDochód[year])","v":60825},{"$f":"tblDochód[[#Totals],[year]]/12","v":{"v":5068.75,"d":"5069"}}]
[]
[]
[null,"dom"]
[null,"Kredyt/czynsz",850,850,850,850,850,850,850,850,850,850,900,900,{"$f":"SUM(KategoriaWydatków_01[[#This Row],[jan]:[dec]])","v":10300},{"$f":"KategoriaWydatków_01[[#This Row],[year]]/12","v":{"v":858.3333333333334,"d":"858"}}]
[null,"Elektryczność",200,200,175,150,150,175,225,275,200,150,150,150,{"$f":"SUM(KategoriaWydatków_01[[#This Row],[jan]:[dec]])","v":2200},{"$f":"KategoriaWydatków_01[[#This Row],[year]]/12","v":{"v":183.33333333333334,"d":"183"}}]
[null,"Telefon",50,50,100,100,50,50,100,100,50,50,50,50,{"$f":"SUM(KategoriaWydatków_01[[#This Row],[jan]:[dec]])","v":800},{"$f":"KategoriaWydatków_01[[#This Row],[year]]/12","v":{"v":66.66666666666667,"d":"67"}}]
[null,"TV kablowa/satelitarna",69,69,69,69,69,69,69,69,69,69,69,69,{"$f":"SUM(KategoriaWydatków_01[[#This Row],[jan]:[dec]])","v":828},{"$f":"KategoriaWydatków_01[[#This Row],[year]]/12","v":69}]
[null,"Internet",39,39,39,39,39,39,39,39,39,39,39,39,{"$f":"SUM(KategoriaWydatków_01[[#This Row],[jan]:[dec]])","v":468},{"$f":"KategoriaWydatków_01[[#This Row],[year]]/12","v":39}]
[null,{"$f":"UPPER(B21 &\" — ŁĄCZNIE\" )","v":"DOM — ŁĄCZNIE"},{"$f":"SUM(KategoriaWydatków_01[jan])","v":1208},{"$f":"SUM(KategoriaWydatków_01[feb])","v":1208},{"$f":"SUM(KategoriaWydatków_01[mar])","v":1233},{"$f":"SUM(KategoriaWydatków_01[apr])","v":1208},{"$f":"SUM(KategoriaWydatków_01[may])","v":1158},{"$f":"SUM(KategoriaWydatków_01[jun])","v":1183},{"$f":"SUM(KategoriaWydatków_01[jul])","v":1283},{"$f":"SUM(KategoriaWydatków_01[aug])","v":1333},{"$f":"SUM(KategoriaWydatków_01[sep])","v":1208},{"$f":"SUM(KategoriaWydatków_01[oct])","v":1158},{"$f":"SUM(KategoriaWydatków_01[nov])","v":1208},{"$f":"SUM(KategoriaWydatków_01[dec])","v":1208},{"$f":"SUM(KategoriaWydatków_01[year])","v":14596},{"$f":"KategoriaWydatków_01[[#Totals],[year]]/12","v":{"v":1216.3333333333333,"d":"1216"}}]
[]
[]
[null,"codzienne wydatki"]
[null,"Artykuły spożywcze",345,250,200,400,350,250,400,350,250,400,350,250,{"$f":"SUM(KategoriaWydatków_02[[#This Row],[jan]:[dec]])","v":3795},{"$f":"KategoriaWydatków_02[[#This Row],[year]]/12","v":{"v":316.25,"d":"316"}}]
[null,"Ubrania",300,null,null,300,null,null,300,null,null,300,null,null,{"$f":"SUM(KategoriaWydatków_02[[#This Row],[jan]:[dec]])","v":1200},{"$f":"KategoriaWydatków_02[[#This Row],[year]]/12","v":100}]
[null,"Restauracje",125,125,300,125,125,200,125,125,125,125,125,125,{"$f":"SUM(KategoriaWydatków_02[[#This Row],[jan]:[dec]])","v":1750},{"$f":"KategoriaWydatków_02[[#This Row],[year]]/12","v":{"v":145.83333333333334,"d":"146"}}]
[null,"Fryzjer/kosmetyczka",25,null,50,null,25,null,50,null,25,null,100,null,{"$f":"SUM(KategoriaWydatków_02[[#This Row],[jan]:[dec]])","v":275},{"$f":"KategoriaWydatków_02[[#This Row],[year]]/12","v":{"v":22.916666666666668,"d":"23"}}]
[null,"Inne",{"$nulls":12},{"$f":"SUM(KategoriaWydatków_02[[#This Row],[jan]:[dec]])","v":0},{"$f":"KategoriaWydatków_02[[#This Row],[year]]/12","v":0}]
[null,{"$f":"UPPER(B30 &\" — ŁĄCZNIE\" )","v":"CODZIENNE WYDATKI — ŁĄCZNIE"},{"$f":"SUM(KategoriaWydatków_02[jan])","v":795},{"$f":"SUM(KategoriaWydatków_02[feb])","v":375},{"$f":"SUM(KategoriaWydatków_02[mar])","v":550},{"$f":"SUM(KategoriaWydatków_02[apr])","v":825},{"$f":"SUM(KategoriaWydatków_02[may])","v":500},{"$f":"SUM(KategoriaWydatków_02[jun])","v":450},{"$f":"SUM(KategoriaWydatków_02[jul])","v":875},{"$f":"SUM(KategoriaWydatków_02[aug])","v":475},{"$f":"SUM(KategoriaWydatków_02[sep])","v":400},{"$f":"SUM(KategoriaWydatków_02[oct])","v":825},{"$f":"SUM(KategoriaWydatków_02[nov])","v":575},{"$f":"SUM(KategoriaWydatków_02[dec])","v":375},{"$f":"SUM(KategoriaWydatków_02[year])","v":7020},{"$f":"KategoriaWydatków_02[[#Totals],[year]]/12","v":585}]
[]
[]
[null,"dzieci"]
[null,"Artykuły szkolne",123,null,100,{"$nulls":4},345,{"$nulls":4},{"$f":"SUM(KategoriaWydatków_03[[#This Row],[jan]:[dec]])","v":568},{"$f":"KategoriaWydatków_03[[#This Row],[year]]/12","v":{"v":47.333333333333336,"d":"47"}}]
[null,"Ubrania",null,100,null,null,100,{"$nulls":3},100,null,null,100,{"$f":"SUM(KategoriaWydatków_03[[#This Row],[jan]:[dec]])","v":400},{"$f":"KategoriaWydatków_03[[#This Row],[year]]/12","v":{"v":33.333333333333336,"d":"33"}}]
[null,"Kanapki",50,50,50,50,50,50,null,null,50,50,50,50,{"$f":"SUM(KategoriaWydatków_03[[#This Row],[jan]:[dec]])","v":500},{"$f":"KategoriaWydatków_03[[#This Row],[year]]/12","v":{"v":41.666666666666664,"d":"42"}}]
[null,"Medyczne",200,200,200,200,200,200,200,200,200,200,200,200,{"$f":"SUM(KategoriaWydatków_03[[#This Row],[jan]:[dec]])","v":2400},{"$f":"KategoriaWydatków_03[[#This Row],[year]]/12","v":200}]
[null,"Inne",2000,150,{"$nulls":3},200,{"$nulls":3},100,null,null,{"$f":"SUM(KategoriaWydatków_03[[#This Row],[jan]:[dec]])","v":2450},{"$f":"KategoriaWydatków_03[[#This Row],[year]]/12","v":{"v":204.16666666666666,"d":"204"}}]
[null,{"$f":"UPPER(B39 &\" — ŁĄCZNIE\" )","v":"DZIECI — ŁĄCZNIE"},{"$f":"SUM(KategoriaWydatków_03[jan])","v":2373},{"$f":"SUM(KategoriaWydatków_03[feb])","v":500},{"$f":"SUM(KategoriaWydatków_03[mar])","v":350},{"$f":"SUM(KategoriaWydatków_03[apr])","v":250},{"$f":"SUM(KategoriaWydatków_03[may])","v":350},{"$f":"SUM(KategoriaWydatków_03[jun])","v":450},{"$f":"SUM(KategoriaWydatków_03[jul])","v":200},{"$f":"SUM(KategoriaWydatków_03[aug])","v":545},{"$f":"SUM(KategoriaWydatków_03[sep])","v":350},{"$f":"SUM(KategoriaWydatków_03[oct])","v":350},{"$f":"SUM(KategoriaWydatków_03[nov])","v":250},{"$f":"SUM(KategoriaWydatków_03[dec])","v":350},{"$f":"SUM(KategoriaWydatków_03[year])","v":6318},{"$f":"KategoriaWydatków_03[[#Totals],[year]]/12","v":{"v":526.5,"d":"527"}}]
[]
[]
[null,"transport"]
[null,"Opłaty samochodowe",600,600,600,600,600,600,600,600,600,600,600,600,{"$f":"SUM(KategoriaWydatków_04[[#This Row],[jan]:[dec]])","v":7200},{"$f":"KategoriaWydatków_04[[#This Row],[year]]/12","v":600}]
[null,"Paliwo",325,325,325,325,325,500,500,500,325,325,325,325,{"$f":"SUM(KategoriaWydatków_04[[#This Row],[jan]:[dec]])","v":4425},{"$f":"KategoriaWydatków_04[[#This Row],[year]]/12","v":{"v":368.75,"d":"369"}}]
[null,"Naprawy",null,100,null,100,null,100,null,100,null,100,null,null,{"$f":"SUM(KategoriaWydatków_04[[#This Row],[jan]:[dec]])","v":500},{"$f":"KategoriaWydatków_04[[#This Row],[year]]/12","v":{"v":41.666666666666664,"d":"42"}}]
[null,"Przegląd",185,{"$nulls":7},225,{"$nulls":3},{"$f":"SUM(KategoriaWydatków_04[[#This Row],[jan]:[dec]])","v":410},{"$f":"KategoriaWydatków_04[[#This Row],[year]]/12","v":{"v":34.166666666666664,"d":"34"}}]
[null,"Inne",{"$nulls":4},400,{"$nulls":7},{"$f":"SUM(KategoriaWydatków_04[[#This Row],[jan]:[dec]])","v":400},{"$f":"KategoriaWydatków_04[[#This Row],[year]]/12","v":{"v":33.333333333333336,"d":"33"}}]
[null,{"$f":"UPPER(B48 &\" — ŁĄCZNIE\" )","v":"TRANSPORT — ŁĄCZNIE"},{"$f":"SUM(KategoriaWydatków_04[jan])","v":1110},{"$f":"SUM(KategoriaWydatków_04[feb])","v":1025},{"$f":"SUM(KategoriaWydatków_04[mar])","v":925},{"$f":"SUM(KategoriaWydatków_04[apr])","v":1025},{"$f":"SUM(KategoriaWydatków_04[may])","v":1325},{"$f":"SUM(KategoriaWydatków_04[jun])","v":1200},{"$f":"SUM(KategoriaWydatków_04[jul])","v":1100},{"$f":"SUM(KategoriaWydatków_04[aug])","v":1200},{"$f":"SUM(KategoriaWydatków_04[sep])","v":1150},{"$f":"SUM(KategoriaWydatków_04[oct])","v":1025},{"$f":"SUM(KategoriaWydatków_04[nov])","v":925},{"$f":"SUM(KategoriaWydatków_04[dec])","v":925},{"$f":"SUM(KategoriaWydatków_04[year])","v":12935},{"$f":"KategoriaWydatków_04[[#Totals],[year]]/12","v":{"v":1077.9166666666667,"d":"1078"}}]
[]
[]
[null,"zdrowie"]
[null,"Lekarz/dentysta",null,35,null,null,35,35,35,null,null,35,null,null,{"$f":"SUM(KategoriaWydatków_05[[#This Row],[jan]:[dec]])","v":175},{"$f":"KategoriaWydatków_05[[#This Row],[year]]/12","v":{"v":14.583333333333334,"d":"15"}}]
[null,"Leki",25,25,25,25,25,25,25,25,25,25,25,25,{"$f":"SUM(KategoriaWydatków_05[[#This Row],[jan]:[dec]])","v":300},{"$f":"KategoriaWydatków_05[[#This Row],[year]]/12","v":25}]
[null,"Inne",null,null,150,{"$nulls":5},150,{"$nulls":3},{"$f":"SUM(KategoriaWydatków_05[[#This Row],[jan]:[dec]])","v":300},{"$f":"KategoriaWydatków_05[[#This Row],[year]]/12","v":25}]
[null,{"$f":"UPPER(B57 &\" — ŁĄCZNIE\" )","v":"ZDROWIE — ŁĄCZNIE"},{"$f":"SUM(KategoriaWydatków_05[jan])","v":25},{"$f":"SUM(KategoriaWydatków_05[feb])","v":60},{"$f":"SUM(KategoriaWydatków_05[mar])","v":175},{"$f":"SUM(KategoriaWydatków_05[apr])","v":25},{"$f":"SUM(KategoriaWydatków_05[may])","v":60},{"$f":"SUM(KategoriaWydatków_05[jun])","v":60},{"$f":"SUM(KategoriaWydatków_05[jul])","v":60},{"$f":"SUM(KategoriaWydatków_05[aug])","v":25},{"$f":"SUM(KategoriaWydatków_05[sep])","v":175},{"$f":"SUM(KategoriaWydatków_05[oct])","v":60},{"$f":"SUM(KategoriaWydatków_05[nov])","v":25},{"$f":"SUM(KategoriaWydatków_05[dec])","v":25},{"$f":"SUM(KategoriaWydatków_05[year])","v":775},{"$f":"KategoriaWydatków_05[[#Totals],[year]]/12","v":{"v":64.58333333333333,"d":"65"}}]
[]
[]
[null,"ubezpieczenia"]
[null,"Samochodowe",150,150,150,150,150,150,150,150,150,150,150,150,{"$f":"SUM(KategoriaWydatków_06[[#This Row],[jan]:[dec]])","v":1800},{"$f":"KategoriaWydatków_06[[#This Row],[year]]/12","v":150}]
[null,"Zdrowotne",675,675,675,675,675,675,675,675,675,675,675,675,{"$f":"SUM(KategoriaWydatków_06[[#This Row],[jan]:[dec]])","v":8100},{"$f":"KategoriaWydatków_06[[#This Row],[year]]/12","v":675}]
[null,"Na życie",150,150,150,150,150,150,150,150,150,150,150,150,{"$f":"SUM(KategoriaWydatków_06[[#This Row],[jan]:[dec]])","v":1800},{"$f":"KategoriaWydatków_06[[#This Row],[year]]/12","v":150}]
[null,{"$f":"UPPER(B64 &\" — ŁĄCZNIE\" )","v":"UBEZPIECZENIA — ŁĄCZNIE"},{"$f":"SUM(KategoriaWydatków_06[jan])","v":975},{"$f":"SUM(KategoriaWydatków_06[feb])","v":975},{"$f":"SUM(KategoriaWydatków_06[mar])","v":975},{"$f":"SUM(KategoriaWydatków_06[apr])","v":975},{"$f":"SUM(KategoriaWydatków_06[may])","v":975},{"$f":"SUM(KategoriaWydatków_06[jun])","v":975},{"$f":"SUM(KategoriaWydatków_06[jul])","v":975},{"$f":"SUM(KategoriaWydatków_06[aug])","v":975},{"$f":"SUM(KategoriaWydatków_06[sep])","v":975},{"$f":"SUM(KategoriaWydatków_06[oct])","v":975},{"$f":"SUM(KategoriaWydatków_06[nov])","v":975},{"$f":"SUM(KategoriaWydatków_06[dec])","v":975},{"$f":"SUM(KategoriaWydatków_06[year])","v":11700},{"$f":"KategoriaWydatków_06[[#Totals],[year]]/12","v":975}]
[]
[]
[null,"edukacja"]
[null,"Czesne",null,null,400,{"$nulls":5},400,{"$nulls":3},{"$f":"SUM(KategoriaWydatków_07[[#This Row],[jan]:[dec]])","v":800},{"$f":"KategoriaWydatków_07[[#This Row],[year]]/12","v":{"v":66.66666666666667,"d":"67"}}]
[null,"Książki",null,null,225,{"$nulls":5},225,{"$nulls":3},{"$f":"SUM(KategoriaWydatków_07[[#This Row],[jan]:[dec]])","v":450},{"$f":"KategoriaWydatków_07[[#This Row],[year]]/12","v":{"v":37.5,"d":"38"}}]
[null,"Inne",{"$nulls":12},{"$f":"SUM(KategoriaWydatków_07[[#This Row],[jan]:[dec]])","v":0},{"$f":"KategoriaWydatków_07[[#This Row],[year]]/12","v":0}]
[null,{"$f":"UPPER(B71 &\" — ŁĄCZNIE\" )","v":"EDUKACJA — ŁĄCZNIE"},{"$f":"SUM(KategoriaWydatków_07[jan])","v":0},{"$f":"SUM(KategoriaWydatków_07[feb])","v":0},{"$f":"SUM(KategoriaWydatków_07[mar])","v":625},{"$f":"SUM(KategoriaWydatków_07[apr])","v":0},{"$f":"SUM(KategoriaWydatków_07[may])","v":0},{"$f":"SUM(KategoriaWydatków_07[jun])","v":0},{"$f":"SUM(KategoriaWydatków_07[jul])","v":0},{"$f":"SUM(KategoriaWydatków_07[aug])","v":0},{"$f":"SUM(KategoriaWydatków_07[sep])","v":625},{"$f":"SUM(KategoriaWydatków_07[oct])","v":0},{"$f":"SUM(KategoriaWydatków_07[nov])","v":0},{"$f":"SUM(KategoriaWydatków_07[dec])","v":0},{"$f":"SUM(KategoriaWydatków_07[year])","v":1250},{"$f":"KategoriaWydatków_07[[#Totals],[year]]/12","v":{"v":104.16666666666667,"d":"104"}}]
[]
[]
[null,"cele charytatywne"]
[null,"Prezenty",null,100,{"$nulls":3},100,{"$nulls":3},100,null,null,{"$f":"SUM(KategoriaWydatków_08[[#This Row],[jan]:[dec]])","v":300},{"$f":"KategoriaWydatków_08[[#This Row],[year]]/12","v":25}]
[null,"Darowizny",null,null,100,null,100,null,100,null,100,null,100,null,{"$f":"SUM(KategoriaWydatków_08[[#This Row],[jan]:[dec]])","v":500},{"$f":"KategoriaWydatków_08[[#This Row],[year]]/12","v":{"v":41.666666666666664,"d":"42"}}]
[null,"Inne",{"$nulls":3},100,{"$nulls":3},100,{"$nulls":3},100,{"$f":"SUM(KategoriaWydatków_08[[#This Row],[jan]:[dec]])","v":300},{"$f":"KategoriaWydatków_08[[#This Row],[year]]/12","v":25}]
[null,{"$f":"UPPER(B78 &\" — ŁĄCZNIE\" )","v":"CELE CHARYTATYWNE — ŁĄCZNIE"},{"$f":"SUM(KategoriaWydatków_08[jan])","v":0},{"$f":"SUM(KategoriaWydatków_08[feb])","v":100},{"$f":"SUM(KategoriaWydatków_08[mar])","v":100},{"$f":"SUM(KategoriaWydatków_08[apr])","v":100},{"$f":"SUM(KategoriaWydatków_08[may])","v":100},{"$f":"SUM(KategoriaWydatków_08[jun])","v":100},{"$f":"SUM(KategoriaWydatków_08[jul])","v":100},{"$f":"SUM(KategoriaWydatków_08[aug])","v":100},{"$f":"SUM(KategoriaWydatków_08[sep])","v":100},{"$f":"SUM(KategoriaWydatków_08[oct])","v":100},{"$f":"SUM(KategoriaWydatków_08[nov])","v":100},{"$f":"SUM(KategoriaWydatków_08[dec])","v":100},{"$f":"SUM(KategoriaWydatków_08[year])","v":1100},{"$f":"KategoriaWydatków_08[[#Totals],[year]]/12","v":{"v":91.66666666666667,"d":"92"}}]
[]
[]
[null,"oszczędności"]
[null,"Fundusz na wydatki specjalne",100,100,100,100,100,{"$nulls":3},100,100,100,100,{"$f":"SUM(KategoriaWydatków_09[[#This Row],[jan]:[dec]])","v":900},{"$f":"KategoriaWydatków_09[[#This Row],[year]]/12","v":75}]
[null,"Emerytura",500,500,500,500,500,500,500,500,500,500,500,500,{"$f":"SUM(KategoriaWydatków_09[[#This Row],[jan]:[dec]])","v":6000},{"$f":"KategoriaWydatków_09[[#This Row],[year]]/12","v":500}]
[null,"Przelew na konto oszczędnościowe",200,200,200,200,200,{"$nulls":3},200,200,200,200,{"$f":"SUM(KategoriaWydatków_09[[#This Row],[jan]:[dec]])","v":1800},{"$f":"KategoriaWydatków_09[[#This Row],[year]]/12","v":150}]
[null,{"$f":"UPPER(B85 &\" — ŁĄCZNIE\" )","v":"OSZCZĘDNOŚCI — ŁĄCZNIE"},{"$f":"SUM(KategoriaWydatków_09[jan])","v":800},{"$f":"SUM(KategoriaWydatków_09[feb])","v":800},{"$f":"SUM(KategoriaWydatków_09[mar])","v":800},{"$f":"SUM(KategoriaWydatków_09[apr])","v":800},{"$f":"SUM(KategoriaWydatków_09[may])","v":800},{"$f":"SUM(KategoriaWydatków_09[jun])","v":500},{"$f":"SUM(KategoriaWydatków_09[jul])","v":500},{"$f":"SUM(KategoriaWydatków_09[aug])","v":500},{"$f":"SUM(KategoriaWydatków_09[sep])","v":800},{"$f":"SUM(KategoriaWydatków_09[oct])","v":800},{"$f":"SUM(KategoriaWydatków_09[nov])","v":800},{"$f":"SUM(KategoriaWydatków_09[dec])","v":800},{"$f":"SUM(KategoriaWydatków_09[year])","v":8700},{"$f":"KategoriaWydatków_09[[#Totals],[year]]/12","v":725}]
[]
[]
[null,"zobowiązania"]
[null,"Karta kredytowa nr 1",145,145,145,145,145,145,145,145,145,145,145,145,{"$f":"SUM(KategoriaWydatków_10[[#This Row],[jan]:[dec]])","v":1740},{"$f":"KategoriaWydatków_10[[#This Row],[year]]/12","v":145}]
[null,"Podatek dochodowy",450,null,null,450,null,null,450,null,null,450,null,null,{"$f":"SUM(KategoriaWydatków_10[[#This Row],[jan]:[dec]])","v":1800},{"$f":"KategoriaWydatków_10[[#This Row],[year]]/12","v":150}]
[null,"Pożyczka studencka",55,55,55,55,55,55,55,55,55,55,55,55,{"$f":"SUM(KategoriaWydatków_10[[#This Row],[jan]:[dec]])","v":660},{"$f":"KategoriaWydatków_10[[#This Row],[year]]/12","v":55}]
[null,{"$f":"UPPER(B92 &\" — ŁĄCZNIE\" )","v":"ZOBOWIĄZANIA — ŁĄCZNIE"},{"$f":"SUM(KategoriaWydatków_10[jan])","v":650},{"$f":"SUM(KategoriaWydatków_10[feb])","v":200},{"$f":"SUM(KategoriaWydatków_10[mar])","v":200},{"$f":"SUM(KategoriaWydatków_10[apr])","v":650},{"$f":"SUM(KategoriaWydatków_10[may])","v":200},{"$f":"SUM(KategoriaWydatków_10[jun])","v":200},{"$f":"SUM(KategoriaWydatków_10[jul])","v":650},{"$f":"SUM(KategoriaWydatków_10[aug])","v":200},{"$f":"SUM(KategoriaWydatków_10[sep])","v":200},{"$f":"SUM(KategoriaWydatków_10[oct])","v":650},{"$f":"SUM(KategoriaWydatków_10[nov])","v":200},{"$f":"SUM(KategoriaWydatków_10[dec])","v":200},{"$f":"SUM(KategoriaWydatków_10[year])","v":4200},{"$f":"KategoriaWydatków_10[[#Totals],[year]]/12","v":350}]
[]
[]
[null," "]
[{"$nulls":14},{"$f":"SUM(KategoriaWydatków_11[[#This Row],[jan]:[dec]])","v":0},{"$f":"KategoriaWydatków_11[[#This Row],[year]]/12","v":0}]
[{"$nulls":14},{"$f":"SUM(KategoriaWydatków_11[[#This Row],[jan]:[dec]])","v":0},{"$f":"KategoriaWydatków_11[[#This Row],[year]]/12","v":0}]
[{"$nulls":14},{"$f":"SUM(KategoriaWydatków_11[[#This Row],[jan]:[dec]])","v":0},{"$f":"KategoriaWydatków_11[[#This Row],[year]]/12","v":0}]
[null,{"$f":"UPPER(\"ŁĄCZNIE \" & B99)","v":"ŁĄCZNIE  "},{"$f":"SUM(KategoriaWydatków_11[jan])","v":0},{"$f":"SUM(KategoriaWydatków_11[feb])","v":0},{"$f":"SUM(KategoriaWydatków_11[mar])","v":0},{"$f":"SUM(KategoriaWydatków_11[apr])","v":0},{"$f":"SUM(KategoriaWydatków_11[may])","v":0},{"$f":"SUM(KategoriaWydatków_11[jun])","v":0},{"$f":"SUM(KategoriaWydatków_11[jul])","v":0},{"$f":"SUM(KategoriaWydatków_11[aug])","v":0},{"$f":"SUM(KategoriaWydatków_11[sep])","v":0},{"$f":"SUM(KategoriaWydatków_11[oct])","v":0},{"$f":"SUM(KategoriaWydatków_11[nov])","v":0},{"$f":"SUM(KategoriaWydatków_11[dec])","v":0},{"$f":"SUM(KategoriaWydatków_11[year])","v":0},{"$f":"KategoriaWydatków_11[[#Totals],[year]]/12","v":0}]
[]
[]
[null," "]
[{"$nulls":14},{"$f":"SUM(KategoriaWydatków_12[[#This Row],[jan]:[dec]])","v":0},{"$f":"KategoriaWydatków_12[[#This Row],[year]]/12","v":0}]
[{"$nulls":14},{"$f":"SUM(KategoriaWydatków_12[[#This Row],[jan]:[dec]])","v":0},{"$f":"KategoriaWydatków_12[[#This Row],[year]]/12","v":0}]
[{"$nulls":14},{"$f":"SUM(KategoriaWydatków_12[[#This Row],[jan]:[dec]])","v":0},{"$f":"KategoriaWydatków_12[[#This Row],[year]]/12","v":0}]
[null,{"$f":"UPPER(\"ŁĄCZNIE \" & B106)","v":"ŁĄCZNIE  "},{"$f":"SUM(KategoriaWydatków_12[jan])","v":0},{"$f":"SUM(KategoriaWydatków_12[feb])","v":0},{"$f":"SUM(KategoriaWydatków_12[mar])","v":0},{"$f":"SUM(KategoriaWydatków_12[apr])","v":0},{"$f":"SUM(KategoriaWydatków_12[may])","v":0},{"$f":"SUM(KategoriaWydatków_12[jun])","v":0},{"$f":"SUM(KategoriaWydatków_12[jul])","v":0},{"$f":"SUM(KategoriaWydatków_12[aug])","v":0},{"$f":"SUM(KategoriaWydatków_12[sep])","v":0},{"$f":"SUM(KategoriaWydatków_12[oct])","v":0},{"$f":"SUM(KategoriaWydatków_12[nov])","v":0},{"$f":"SUM(KategoriaWydatków_12[dec])","v":0},{"$f":"SUM(KategoriaWydatków_12[year])","v":0},{"$f":"KategoriaWydatków_12[[#Totals],[year]]/12","v":0}]
[]
[]
[null," "]
[{"$nulls":14},{"$f":"SUM(KategoriaWydatków_13[[#This Row],[jan]:[dec]])","v":0},{"$f":"KategoriaWydatków_13[[#This Row],[year]]/12","v":0}]
[{"$nulls":14},{"$f":"SUM(KategoriaWydatków_13[[#This Row],[jan]:[dec]])","v":0},{"$f":"KategoriaWydatków_13[[#This Row],[year]]/12","v":0}]
[{"$nulls":14},{"$f":"SUM(KategoriaWydatków_13[[#This Row],[jan]:[dec]])","v":0},{"$f":"KategoriaWydatków_13[[#This Row],[year]]/12","v":0}]
[null,{"$f":"UPPER(\"ŁĄCZNIE \" & B113)","v":"ŁĄCZNIE  "},{"$f":"SUM(KategoriaWydatków_13[jan])","v":0},{"$f":"SUM(KategoriaWydatków_13[feb])","v":0},{"$f":"SUM(KategoriaWydatków_13[mar])","v":0},{"$f":"SUM(KategoriaWydatków_13[apr])","v":0},{"$f":"SUM(KategoriaWydatków_13[may])","v":0},{"$f":"SUM(KategoriaWydatków_13[jun])","v":0},{"$f":"SUM(KategoriaWydatków_13[jul])","v":0},{"$f":"SUM(KategoriaWydatków_13[aug])","v":0},{"$f":"SUM(KategoriaWydatków_13[sep])","v":0},{"$f":"SUM(KategoriaWydatków_13[oct])","v":0},{"$f":"SUM(KategoriaWydatków_13[nov])","v":0},{"$f":"SUM(KategoriaWydatków_13[dec])","v":0},{"$f":"SUM(KategoriaWydatków_13[year])","v":0},{"$f":"KategoriaWydatków_13[[#Totals],[year]]/12","v":0}]
[]
[]
[null," "]
[{"$nulls":14},{"$f":"SUM(KategoriaWydatków_14[[#This Row],[jan]:[dec]])","v":0},{"$f":"KategoriaWydatków_14[[#This Row],[year]]/12","v":0}]
[{"$nulls":14},{"$f":"SUM(KategoriaWydatków_14[[#This Row],[jan]:[dec]])","v":0},{"$f":"KategoriaWydatków_14[[#This Row],[year]]/12","v":0}]
[{"$nulls":14},{"$f":"SUM(KategoriaWydatków_14[[#This Row],[jan]:[dec]])","v":0},{"$f":"KategoriaWydatków_14[[#This Row],[year]]/12","v":0}]
[null,{"$f":"UPPER(\"ŁĄCZNIE \" & B120)","v":"ŁĄCZNIE  "},{"$f":"SUM(KategoriaWydatków_14[jan])","v":0},{"$f":"SUM(KategoriaWydatków_14[feb])","v":0},{"$f":"SUM(KategoriaWydatków_14[mar])","v":0},{"$f":"SUM(KategoriaWydatków_14[apr])","v":0},{"$f":"SUM(KategoriaWydatków_14[may])","v":0},{"$f":"SUM(KategoriaWydatków_14[jun])","v":0},{"$f":"SUM(KategoriaWydatków_14[jul])","v":0},{"$f":"SUM(KategoriaWydatków_14[aug])","v":0},{"$f":"SUM(KategoriaWydatków_14[sep])","v":0},{"$f":"SUM(KategoriaWydatków_14[oct])","v":0},{"$f":"SUM(KategoriaWydatków_14[nov])","v":0},{"$f":"SUM(KategoriaWydatków_14[dec])","v":0},{"$f":"SUM(KategoriaWydatków_14[year])","v":0},{"$f":"KategoriaWydatków_14[[#Totals],[year]]/12","v":0}]
[]
[]
[null," "]
[{"$nulls":14},{"$f":"SUM(KategoriaWydatków_15[[#This Row],[jan]:[dec]])","v":0},{"$f":"KategoriaWydatków_15[[#This Row],[year]]/12","v":0}]
[{"$nulls":14},{"$f":"SUM(KategoriaWydatków_15[[#This Row],[jan]:[dec]])","v":0},{"$f":"KategoriaWydatków_15[[#This Row],[year]]/12","v":0}]
[{"$nulls":14},{"$f":"SUM(KategoriaWydatków_15[[#This Row],[jan]:[dec]])","v":0},{"$f":"KategoriaWydatków_15[[#This Row],[year]]/12","v":0}]
[null,{"$f":"UPPER(\"ŁĄCZNIE \" & B127)","v":"ŁĄCZNIE  "},{"$f":"SUM(KategoriaWydatków_15[jan])","v":0},{"$f":"SUM(KategoriaWydatków_15[feb])","v":0},{"$f":"SUM(KategoriaWydatków_15[mar])","v":0},{"$f":"SUM(KategoriaWydatków_15[apr])","v":0},{"$f":"SUM(KategoriaWydatków_15[may])","v":0},{"$f":"SUM(KategoriaWydatków_15[jun])","v":0},{"$f":"SUM(KategoriaWydatków_15[jul])","v":0},{"$f":"SUM(KategoriaWydatków_15[aug])","v":0},{"$f":"SUM(KategoriaWydatków_15[sep])","v":0},{"$f":"SUM(KategoriaWydatków_15[oct])","v":0},{"$f":"SUM(KategoriaWydatków_15[nov])","v":0},{"$f":"SUM(KategoriaWydatków_15[dec])","v":0},{"$f":"SUM(KategoriaWydatków_15[year])","v":0},{"$f":"KategoriaWydatków_15[[#Totals],[year]]/12","v":0}]

{"sheet":"Ustawienia","index":2,"n_rows":59,"n_cols":10,"rows_kept":59}
[null,"RODZINA ROLECKICH 2012"]
[null,"przychód",null,"wydatki"]
[null,"wynagrodzenia i napiwki",null," "]
[null,"przychód z tytułu odsetek",null,"dom",null,"dom",null,"codzienne wydatki",null,"dzieci"]
[null,"dywidendy",null,"codzienne wydatki",null,"kredyt/czynsz",null,"artykuły spożywcze",null,"medyczne"]
[null,"otrzymane prezenty",null,"dzieci",null,"elektryczność",null,"artykuły osobiste",null,"ubrania"]
[null,"zwroty kosztów",null,"transport",null,"gaz/olej opałowy",null,"ubrania",null,"czesne"]
[null,"przelew z konta oszczędnościowego",null,"zdrowie",null,"woda/ścieki/wywóz śmieci",null,"sprzątanie",null,"kanapki"]
[null,"inne",null,"ubezpieczenia",null,"telefon",null,"restauracje",null,"artykuły szkolne"]
[{"$nulls":3},"edukacja",null,"TV kablowa/satelitarna",null,"pralnia chemiczna",null,"niania"]
[{"$nulls":3},"cele charytatywne",null,"Internet",null,"fryzjer/kosmetyczka",null,"zabawki/gry"]
[{"$nulls":3},"oszczędności",null,"wyposażenie/urządzenia",null,"inne",null,"inne"]
[{"$nulls":3},"zobowiązania",null,"trawnik/ogród"]
[{"$nulls":3},"rozrywka",null,"materiały eksploatacyjne"]
[{"$nulls":3},"zwierzęta domowe",null,"konserwacja"]
[{"$nulls":3},"subskrypcje",null,"usprawnienia"]
[{"$nulls":3},"urlop",null,"inne"]
[{"$nulls":3},"różne"]
[]
[{"$nulls":5},"transport",null,"zdrowie",null,"ubezpieczenia"]
[{"$nulls":5},"opłaty samochodowe",null,"lekarz/dentysta",null,"samochodowe"]
[{"$nulls":5},"paliwo",null,"leki",null,"zdrowotne"]
[{"$nulls":5},"opłaty za autobus/taksówkę/pociąg",null,"opłaty za klub sportowy",null,"mieszkaniowe"]
[{"$nulls":5},"naprawy",null,"nagłe wypadki",null,"na życie"]
[{"$nulls":5},"przegląd",null,"inne",null,"inne"]
[{"$nulls":5},"inne"]
[]
[]
[{"$nulls":5},"edukacja",null,"cele charytatywne",null,"oszczędności"]
[{"$nulls":5},"czesne",null,"prezenty",null,"fundusz na wydatki specjalne"]
[{"$nulls":5},"książki",null,"darowizny",null,"przelew na konto oszczędnościowe"]
[{"$nulls":5},"lekcje muzyki",null,"na cele religijne",null,"emerytura"]
[{"$nulls":5},"inne",null,"inne",null,"lokaty"]
[{"$nulls":9},"edukacja"]
[{"$nulls":9},"inne"]
[]
[]
[{"$nulls":5},"zobowiązania",null,"rozrywka",null,"zwierzęta domowe"]
[{"$nulls":5},"pożyczka studencka",null,"filmy wideo/DVD",null,"karma"]
[{"$nulls":5},"inna pożyczka",null,"muzyka",null,"medyczne"]
[{"$nulls":5},"karta kredytowa nr 1",null,"gry",null,"zabawki/artykuły"]
[{"$nulls":5},"karta kredytowa nr 2",null,"wypożyczalnie",null,"inne"]
[{"$nulls":5},"karta kredytowa nr 3",null,"kino"]
[{"$nulls":5},"alimenty",null,"koncerty/przedstawienia"]
[{"$nulls":5},"podatek dochodowy",null,"książki"]
[{"$nulls":5},"podatek od nieruchomości",null,"hobby"]
[{"$nulls":5},"inne podatki",null,"filmy/zdjęcia"]
[{"$nulls":5},"opłaty członkowskie",null,"sport"]
[{"$nulls":5},"opłaty prawne",null,"wypoczynek poza domem"]
[{"$nulls":5},"inne",null,"zabawki/gadżety"]
[{"$nulls":7},"inne"]
[]
[{"$nulls":5},"subskrypcje",null,"urlop",null,"różne"]
[{"$nulls":5},"gazety",null,"podróż",null,"opłaty bankowe"]
[{"$nulls":5},"czasopisma",null,"zakwaterowanie",null,"opłaty pocztowe"]
[{"$nulls":5},"opłaty",null,"wyżywienie",null,"inne"]
[{"$nulls":5},"członkostwo w klubach",null,"wypożyczony samochód"]
[{"$nulls":5},"inne",null,"rozrywka"]
[{"$nulls":7},"inne"]

{"sheet":"Dane wykresu","index":3,"n_rows":40,"n_cols":16,"rows_kept":40,"hidden":true}
[null,"*** Ten arkusz powinien pozostać ukryty ***"]
[]
[]
[null,"Okres",3]
[]
[null,null,"sty","lut","mar","kwi","maj","cze","lip","się","wrz","paź","lis","gru","rok","średnio"]
[null,{"$f":"LOWER(Budżet!B127)","v":" "},{"$f":"SUM(KategoriaWydatków_15[jan])","v":0},{"$f":"SUM(KategoriaWydatków_15[feb])","v":0},{"$f":"SUM(KategoriaWydatków_15[mar])","v":0},{"$f":"SUM(KategoriaWydatków_15[apr])","v":0},{"$f":"SUM(KategoriaWydatków_15[may])","v":0},{"$f":"SUM(KategoriaWydatków_15[jun])","v":0},{"$f":"SUM(KategoriaWydatków_15[jul])","v":0},{"$f":"SUM(KategoriaWydatków_15[aug])","v":0},{"$f":"SUM(KategoriaWydatków_15[sep])","v":0},{"$f":"SUM(KategoriaWydatków_15[oct])","v":0},{"$f":"SUM(KategoriaWydatków_15[nov])","v":0},{"$f":"SUM(KategoriaWydatków_15[dec])","v":0},{"$f":"SUM(KategoriaWydatków_15[year])","v":0},{"$f":"SUM(KategoriaWydatków_15[avg])","v":0}]
[null,{"$f":"LOWER(Budżet!B120)","v":" "},{"$f":"SUM(KategoriaWydatków_14[jan])","v":0},{"$f":"SUM(KategoriaWydatków_14[feb])","v":0},{"$f":"SUM(KategoriaWydatków_14[mar])","v":0},{"$f":"SUM(KategoriaWydatków_14[apr])","v":0},{"$f":"SUM(KategoriaWydatków_14[may])","v":0},{"$f":"SUM(KategoriaWydatków_14[jun])","v":0},{"$f":"SUM(KategoriaWydatków_14[jul])","v":0},{"$f":"SUM(KategoriaWydatków_14[aug])","v":0},{"$f":"SUM(KategoriaWydatków_14[sep])","v":0},{"$f":"SUM(KategoriaWydatków_14[oct])","v":0},{"$f":"SUM(KategoriaWydatków_14[nov])","v":0},{"$f":"SUM(KategoriaWydatków_14[dec])","v":0},{"$f":"SUM(KategoriaWydatków_14[year])","v":0},{"$f":"SUM(KategoriaWydatków_14[avg])","v":0}]
[null,{"$f":"LOWER(Budżet!B113)","v":" "},{"$f":"SUM(KategoriaWydatków_13[jan])","v":0},{"$f":"SUM(KategoriaWydatków_13[feb])","v":0},{"$f":"SUM(KategoriaWydatków_13[mar])","v":0},{"$f":"SUM(KategoriaWydatków_13[apr])","v":0},{"$f":"SUM(KategoriaWydatków_13[may])","v":0},{"$f":"SUM(KategoriaWydatków_13[jun])","v":0},{"$f":"SUM(KategoriaWydatków_13[jul])","v":0},{"$f":"SUM(KategoriaWydatków_13[aug])","v":0},{"$f":"SUM(KategoriaWydatków_13[sep])","v":0},{"$f":"SUM(KategoriaWydatków_13[oct])","v":0},{"$f":"SUM(KategoriaWydatków_13[nov])","v":0},{"$f":"SUM(KategoriaWydatków_13[dec])","v":0},{"$f":"SUM(KategoriaWydatków_13[year])","v":0},{"$f":"SUM(KategoriaWydatków_13[avg])","v":0}]
[null,{"$f":"LOWER(Budżet!B106)","v":" "},{"$f":"SUM(KategoriaWydatków_12[jan])","v":0},{"$f":"SUM(KategoriaWydatków_12[feb])","v":0},{"$f":"SUM(KategoriaWydatków_12[mar])","v":0},{"$f":"SUM(KategoriaWydatków_12[apr])","v":0},{"$f":"SUM(KategoriaWydatków_12[may])","v":0},{"$f":"SUM(KategoriaWydatków_12[jun])","v":0},{"$f":"SUM(KategoriaWydatków_12[jul])","v":0},{"$f":"SUM(KategoriaWydatków_12[aug])","v":0},{"$f":"SUM(KategoriaWydatków_12[sep])","v":0},{"$f":"SUM(KategoriaWydatków_12[oct])","v":0},{"$f":"SUM(KategoriaWydatków_12[nov])","v":0},{"$f":"SUM(KategoriaWydatków_12[dec])","v":0},{"$f":"SUM(KategoriaWydatków_12[year])","v":0},{"$f":"SUM(KategoriaWydatków_12[avg])","v":0}]
[null,{"$f":"LOWER(Budżet!B99)","v":" "},{"$f":"SUM(KategoriaWydatków_11[jan])","v":0},{"$f":"SUM(KategoriaWydatków_11[feb])","v":0},{"$f":"SUM(KategoriaWydatków_11[mar])","v":0},{"$f":"SUM(KategoriaWydatków_11[apr])","v":0},{"$f":"SUM(KategoriaWydatków_11[may])","v":0},{"$f":"SUM(KategoriaWydatków_11[jun])","v":0},{"$f":"SUM(KategoriaWydatków_11[jul])","v":0},{"$f":"SUM(KategoriaWydatków_11[aug])","v":0},{"$f":"SUM(KategoriaWydatków_11[sep])","v":0},{"$f":"SUM(KategoriaWydatków_11[oct])","v":0},{"$f":"SUM(KategoriaWydatków_11[nov])","v":0},{"$f":"SUM(KategoriaWydatków_11[dec])","v":0},{"$f":"SUM(KategoriaWydatków_11[year])","v":0},{"$f":"SUM(KategoriaWydatków_11[avg])","v":0}]
[null,{"$f":"LOWER(Budżet!B92)","v":"zobowiązania"},{"$f":"SUM(KategoriaWydatków_10[jan])","v":650},{"$f":"SUM(KategoriaWydatków_10[feb])","v":200},{"$f":"SUM(KategoriaWydatków_10[mar])","v":200},{"$f":"SUM(KategoriaWydatków_10[apr])","v":650},{"$f":"SUM(KategoriaWydatków_10[may])","v":200},{"$f":"SUM(KategoriaWydatków_10[jun])","v":200},{"$f":"SUM(KategoriaWydatków_10[jul])","v":650},{"$f":"SUM(KategoriaWydatków_10[aug])","v":200},{"$f":"SUM(KategoriaWydatków_10[sep])","v":200},{"$f":"SUM(KategoriaWydatków_10[oct])","v":650},{"$f":"SUM(KategoriaWydatków_10[nov])","v":200},{"$f":"SUM(KategoriaWydatków_10[dec])","v":200},{"$f":"SUM(KategoriaWydatków_10[year])","v":{"v":4200,"d":"4,200"}},{"$f":"SUM(KategoriaWydatków_10[avg])","v":350}]
[null,{"$f":"LOWER(Budżet!B85)","v":"oszczędności"},{"$f":"SUM(KategoriaWydatków_09[jan])","v":800},{"$f":"SUM(KategoriaWydatków_09[feb])","v":800},{"$f":"SUM(KategoriaWydatków_09[mar])","v":800},{"$f":"SUM(KategoriaWydatków_09[apr])","v":800},{"$f":"SUM(KategoriaWydatków_09[may])","v":800},{"$f":"SUM(KategoriaWydatków_09[jun])","v":500},{"$f":"SUM(KategoriaWydatków_09[jul])","v":500},{"$f":"SUM(KategoriaWydatków_09[aug])","v":500},{"$f":"SUM(KategoriaWydatków_09[sep])","v":800},{"$f":"SUM(KategoriaWydatków_09[oct])","v":800},{"$f":"SUM(KategoriaWydatków_09[nov])","v":800},{"$f":"SUM(KategoriaWydatków_09[dec])","v":800},{"$f":"SUM(KategoriaWydatków_09[year])","v":{"v":8700,"d":"8,700"}},{"$f":"SUM(KategoriaWydatków_09[avg])","v":725}]
[null,{"$f":"LOWER(Budżet!B78)","v":"cele charytatywne"},{"$f":"SUM(KategoriaWydatków_08[jan])","v":0},{"$f":"SUM(KategoriaWydatków_08[feb])","v":100},{"$f":"SUM(KategoriaWydatków_08[mar])","v":100},{"$f":"SUM(KategoriaWydatków_08[apr])","v":100},{"$f":"SUM(KategoriaWydatków_08[may])","v":100},{"$f":"SUM(KategoriaWydatków_08[jun])","v":100},{"$f":"SUM(KategoriaWydatków_08[jul])","v":100},{"$f":"SUM(KategoriaWydatków_08[aug])","v":100},{"$f":"SUM(KategoriaWydatków_08[sep])","v":100},{"$f":"SUM(KategoriaWydatków_08[oct])","v":100},{"$f":"SUM(KategoriaWydatków_08[nov])","v":100},{"$f":"SUM(KategoriaWydatków_08[dec])","v":100},{"$f":"SUM(KategoriaWydatków_08[year])","v":{"v":1100,"d":"1,100"}},{"$f":"SUM(KategoriaWydatków_08[avg])","v":{"v":91.66666666666666,"d":"92"}}]
[null,{"$f":"LOWER(Budżet!B71)","v":"edukacja"},{"$f":"SUM(KategoriaWydatków_07[jan])","v":0},{"$f":"SUM(KategoriaWydatków_07[feb])","v":0},{"$f":"SUM(KategoriaWydatków_07[mar])","v":625},{"$f":"SUM(KategoriaWydatków_07[apr])","v":0},{"$f":"SUM(KategoriaWydatków_07[may])","v":0},{"$f":"SUM(KategoriaWydatków_07[jun])","v":0},{"$f":"SUM(KategoriaWydatków_07[jul])","v":0},{"$f":"SUM(KategoriaWydatków_07[aug])","v":0},{"$f":"SUM(KategoriaWydatków_07[sep])","v":625},{"$f":"SUM(KategoriaWydatków_07[oct])","v":0},{"$f":"SUM(KategoriaWydatków_07[nov])","v":0},{"$f":"SUM(KategoriaWydatków_07[dec])","v":0},{"$f":"SUM(KategoriaWydatków_07[year])","v":{"v":1250,"d":"1,250"}},{"$f":"SUM(KategoriaWydatków_07[avg])","v":{"v":104.16666666666667,"d":"104"}}]
[null,{"$f":"LOWER(Budżet!B64)","v":"ubezpieczenia"},{"$f":"SUM(KategoriaWydatków_06[jan])","v":975},{"$f":"SUM(KategoriaWydatków_06[feb])","v":975},{"$f":"SUM(KategoriaWydatków_06[mar])","v":975},{"$f":"SUM(KategoriaWydatków_06[apr])","v":975},{"$f":"SUM(KategoriaWydatków_06[may])","v":975},{"$f":"SUM(KategoriaWydatków_06[jun])","v":975},{"$f":"SUM(KategoriaWydatków_06[jul])","v":975},{"$f":"SUM(KategoriaWydatków_06[aug])","v":975},{"$f":"SUM(KategoriaWydatków_06[sep])","v":975},{"$f":"SUM(KategoriaWydatków_06[oct])","v":975},{"$f":"SUM(KategoriaWydatków_06[nov])","v":975},{"$f":"SUM(KategoriaWydatków_06[dec])","v":975},{"$f":"SUM(KategoriaWydatków_06[year])","v":{"v":11700,"d":"11,700"}},{"$f":"SUM(KategoriaWydatków_06[avg])","v":975}]
[null,{"$f":"LOWER(Budżet!B57)","v":"zdrowie"},{"$f":"SUM(KategoriaWydatków_05[jan])","v":25},{"$f":"SUM(KategoriaWydatków_05[feb])","v":60},{"$f":"SUM(KategoriaWydatków_05[mar])","v":175},{"$f":"SUM(KategoriaWydatków_05[apr])","v":25},{"$f":"SUM(KategoriaWydatków_05[may])","v":60},{"$f":"SUM(KategoriaWydatków_05[jun])","v":60},{"$f":"SUM(KategoriaWydatków_05[jul])","v":60},{"$f":"SUM(KategoriaWydatków_05[aug])","v":25},{"$f":"SUM(KategoriaWydatków_05[sep])","v":175},{"$f":"SUM(KategoriaWydatków_05[oct])","v":60},{"$f":"SUM(KategoriaWydatków_05[nov])","v":25},{"$f":"SUM(KategoriaWydatków_05[dec])","v":25},{"$f":"SUM(KategoriaWydatków_05[year])","v":775},{"$f":"SUM(KategoriaWydatków_05[avg])","v":{"v":64.58333333333334,"d":"65"}}]
[null,{"$f":"LOWER(Budżet!B48)","v":"transport"},{"$f":"SUM(KategoriaWydatków_04[jan])","v":{"v":1110,"d":"1,110"}},{"$f":"SUM(KategoriaWydatków_04[feb])","v":{"v":1025,"d":"1,025"}},{"$f":"SUM(KategoriaWydatków_04[mar])","v":925},{"$f":"SUM(KategoriaWydatków_04[apr])","v":{"v":1025,"d":"1,025"}},{"$f":"SUM(KategoriaWydatków_04[may])","v":{"v":1325,"d":"1,325"}},{"$f":"SUM(KategoriaWydatków_04[jun])","v":{"v":1200,"d":"1,200"}},{"$f":"SUM(KategoriaWydatków_04[jul])","v":{"v":1100,"d":"1,100"}},{"$f":"SUM(KategoriaWydatków_04[aug])","v":{"v":1200,"d":"1,200"}},{"$f":"SUM(KategoriaWydatków_04[sep])","v":{"v":1150,"d":"1,150"}},{"$f":"SUM(KategoriaWydatków_04[oct])","v":{"v":1025,"d":"1,025"}},{"$f":"SUM(KategoriaWydatków_04[nov])","v":925},{"$f":"SUM(KategoriaWydatków_04[dec])","v":925},{"$f":"SUM(KategoriaWydatków_04[year])","v":{"v":12935,"d":"12,935"}},{"$f":"SUM(KategoriaWydatków_04[avg])","v":{"v":1077.9166666666665,"d":"1,078"}}]
[null,{"$f":"LOWER(Budżet!B39)","v":"dzieci"},{"$f":"SUM(KategoriaWydatków_03[jan])","v":{"v":2373,"d":"2,373"}},{"$f":"SUM(KategoriaWydatków_03[feb])","v":500},{"$f":"SUM(KategoriaWydatków_03[mar])","v":350},{"$f":"SUM(KategoriaWydatków_03[apr])","v":250},{"$f":"SUM(KategoriaWydatków_03[may])","v":350},{"$f":"SUM(KategoriaWydatków_03[jun])","v":450},{"$f":"SUM(KategoriaWydatków_03[jul])","v":200},{"$f":"SUM(KategoriaWydatków_03[aug])","v":545},{"$f":"SUM(KategoriaWydatków_03[sep])","v":350},{"$f":"SUM(KategoriaWydatków_03[oct])","v":350},{"$f":"SUM(KategoriaWydatków_03[nov])","v":250},{"$f":"SUM(KategoriaWydatków_03[dec])","v":350},{"$f":"SUM(KategoriaWydatków_03[year])","v":{"v":6318,"d":"6,318"}},{"$f":"SUM(KategoriaWydatków_03[avg])","v":{"v":526.5,"d":"527"}}]
[null,{"$f":"LOWER(Budżet!B30)","v":"codzienne wydatki"},{"$f":"SUM(KategoriaWydatków_02[jan])","v":795},{"$f":"SUM(KategoriaWydatków_02[feb])","v":375},{"$f":"SUM(KategoriaWydatków_02[mar])","v":550},{"$f":"SUM(KategoriaWydatków_02[apr])","v":825},{"$f":"SUM(KategoriaWydatków_02[may])","v":500},{"$f":"SUM(KategoriaWydatków_02[jun])","v":450},{"$f":"SUM(KategoriaWydatków_02[jul])","v":875},{"$f":"SUM(KategoriaWydatków_02[aug])","v":475},{"$f":"SUM(KategoriaWydatków_02[sep])","v":400},{"$f":"SUM(KategoriaWydatków_02[oct])","v":825},{"$f":"SUM(KategoriaWydatków_02[nov])","v":575},{"$f":"SUM(KategoriaWydatków_02[dec])","v":375},{"$f":"SUM(KategoriaWydatków_02[year])","v":{"v":7020,"d":"7,020"}},{"$f":"SUM(KategoriaWydatków_02[avg])","v":585}]
[null,{"$f":"LOWER(Budżet!B21)","v":"dom"},{"$f":"SUM(KategoriaWydatków_01[jan])","v":{"v":1208,"d":"1,208"}},{"$f":"SUM(KategoriaWydatków_01[feb])","v":{"v":1208,"d":"1,208"}},{"$f":"SUM(KategoriaWydatków_01[mar])","v":{"v":1233,"d":"1,233"}},{"$f":"SUM(KategoriaWydatków_01[apr])","v":{"v":1208,"d":"1,208"}},{"$f":"SUM(KategoriaWydatków_01[may])","v":{"v":1158,"d":"1,158"}},{"$f":"SUM(KategoriaWydatków_01[jun])","v":{"v":1183,"d":"1,183"}},{"$f":"SUM(KategoriaWydatków_01[jul])","v":{"v":1283,"d":"1,283"}},{"$f":"SUM(KategoriaWydatków_01[aug])","v":{"v":1333,"d":"1,333"}},{"$f":"SUM(KategoriaWydatków_01[sep])","v":{"v":1208,"d":"1,208"}},{"$f":"SUM(KategoriaWydatków_01[oct])","v":{"v":1158,"d":"1,158"}},{"$f":"SUM(KategoriaWydatków_01[nov])","v":{"v":1208,"d":"1,208"}},{"$f":"SUM(KategoriaWydatków_01[dec])","v":{"v":1208,"d":"1,208"}},{"$f":"SUM(KategoriaWydatków_01[year])","v":{"v":14596,"d":"14,596"}},{"$f":"SUM(KategoriaWydatków_01[avg])","v":{"v":1216.3333333333335,"d":"1,216"}}]
[]
[]
[]
[]
[null,"Skumulowany przepływ gotówkowy",{"$f":"SUM(Budżet!$C$8:C$8)","v":{"v":-3714,"d":"-3,714"}},{"$f":"SUM(Budżet!$C$8:D$8)","v":76},{"$f":"SUM(Budżet!$C$8:E$8)","v":{"v":-1857,"d":"-1,857"}},{"$f":"SUM(Budżet!$C$8:F$8)","v":{"v":-3670,"d":"-3,670"}},{"$f":"SUM(Budżet!$C$8:G$8)","v":-138},{"$f":"SUM(Budżet!$C$8:H$8)","v":{"v":-3731,"d":"-3,731"}},{"$f":"SUM(Budżet!$C$8:I$8)","v":{"v":-7974,"d":"-7,974"}},{"$f":"SUM(Budżet!$C$8:J$8)","v":{"v":-6827,"d":"-6,827"}},{"$f":"SUM(Budżet!$C$8:K$8)","v":{"v":-8810,"d":"-8,810"}},{"$f":"SUM(Budżet!$C$8:L$8)","v":{"v":-10753,"d":"-10,753"}},{"$f":"SUM(Budżet!$C$8:M$8)","v":{"v":-6811,"d":"-6,811"}},{"$f":"SUM(Budżet!$C$8:N$8)","v":{"v":-7769,"d":"-7,769"}},{"$f":"SUM(Budżet!$C$8:O$8)","v":{"v":-15538,"d":"-15,538"}}]
[]
[null,"Dodatni przepływ gotówkowy w ujęciu rocznym",{"$f":"IF(Budżet!C$8<0,NA(),IF(okres+2<>COLUMN(Budżet!C$8),NA(),Budżet!C$8))","v":{"$error":"#N/A"}},{"$f":"IF(Budżet!D$8<0,NA(),IF(okres+2<>COLUMN(Budżet!D$8),NA(),Budżet!D$8))","v":{"$error":"#N/A"}},{"$f":"IF(Budżet!E$8<0,NA(),IF(okres+2<>COLUMN(Budżet!E$8),NA(),Budżet!E$8))","v":{"$error":"#N/A"}},{"$f":"IF(Budżet!F$8<0,NA(),IF(okres+2<>COLUMN(Budżet!F$8),NA(),Budżet!F$8))","v":{"$error":"#N/A"}},{"$f":"IF(Budżet!G$8<0,NA(),IF(okres+2<>COLUMN(Budżet!G$8),NA(),Budżet!G$8))","v":{"$error":"#N/A"}},{"$f":"IF(Budżet!H$8<0,NA(),IF(okres+2<>COLUMN(Budżet!H$8),NA(),Budżet!H$8))","v":{"$error":"#N/A"}},{"$f":"IF(Budżet!I$8<0,NA(),IF(okres+2<>COLUMN(Budżet!I$8),NA(),Budżet!I$8))","v":{"$error":"#N/A"}},{"$f":"IF(Budżet!J$8<0,NA(),IF(okres+2<>COLUMN(Budżet!J$8),NA(),Budżet!J$8))","v":{"$error":"#N/A"}},{"$f":"IF(Budżet!K$8<0,NA(),IF(okres+2<>COLUMN(Budżet!K$8),NA(),Budżet!K$8))","v":{"$error":"#N/A"}},{"$f":"IF(Budżet!L$8<0,NA(),IF(okres+2<>COLUMN(Budżet!L$8),NA(),Budżet!L$8))","v":{"$error":"#N/A"}},{"$f":"IF(Budżet!M$8<0,NA(),IF(okres+2<>COLUMN(Budżet!M$8),NA(),Budżet!M$8))","v":{"$error":"#N/A"}},{"$f":"IF(Budżet!N$8<0,NA(),IF(okres+2<>COLUMN(Budżet!N$8),NA(),Budżet!N$8))","v":{"$error":"#N/A"}},{"$f":"IF(Budżet!O$8<0,NA(),IF(okres+2<>COLUMN(Budżet!O$8),NA(),Budżet!O$8))","v":{"$error":"#N/A"}}]
[null,"Ujemny przepływ gotówkowy w ujęciu rocznym",{"$f":"IF(Budżet!C$8>=0,NA(),IF(okres+2<>COLUMN(Budżet!C$8),NA(),Budżet!C$8))","v":{"$error":"#N/A"}},{"$f":"IF(Budżet!D$8>=0,NA(),IF(okres+2<>COLUMN(Budżet!D$8),NA(),Budżet!D$8))","v":{"$error":"#N/A"}},{"$f":"IF(Budżet!E$8>=0,NA(),IF(okres+2<>COLUMN(Budżet!E$8),NA(),Budżet!E$8))","v":{"v":-1933,"d":"-1,933"}},{"$f":"IF(Budżet!F$8>=0,NA(),IF(okres+2<>COLUMN(Budżet!F$8),NA(),Budżet!F$8))","v":{"$error":"#N/A"}},{"$f":"IF(Budżet!G$8>=0,NA(),IF(okres+2<>COLUMN(Budżet!G$8),NA(),Budżet!G$8))","v":{"$error":"#N/A"}},{"$f":"IF(Budżet!H$8>=0,NA(),IF(okres+2<>COLUMN(Budżet!H$8),NA(),Budżet!H$8))","v":{"$error":"#N/A"}},{"$f":"IF(Budżet!I$8>=0,NA(),IF(okres+2<>COLUMN(Budżet!I$8),NA(),Budżet!I$8))","v":{"$error":"#N/A"}},{"$f":"IF(Budżet!J$8>=0,NA(),IF(okres+2<>COLUMN(Budżet!J$8),NA(),Budżet!J$8))","v":{"$error":"#N/A"}},{"$f":"IF(Budżet!K$8>=0,NA(),IF(okres+2<>COLUMN(Budżet!K$8),NA(),Budżet!K$8))","v":{"$error":"#N/A"}},{"$f":"IF(Budżet!L$8>=0,NA(),IF(okres+2<>COLUMN(Budżet!L$8),NA(),Budżet!L$8))","v":{"$error":"#N/A"}},{"$f":"IF(Budżet!M$8>=0,NA(),IF(okres+2<>COLUMN(Budżet!M$8),NA(),Budżet!M$8))","v":{"$error":"#N/A"}},{"$f":"IF(Budżet!N$8>=0,NA(),IF(okres+2<>COLUMN(Budżet!N$8),NA(),Budżet!N$8))","v":{"$error":"#N/A"}},{"$f":"IF(Budżet!O$8>=0,NA(),IF(okres+2<>COLUMN(Budżet!O$8),NA(),Budżet!O$8))","v":{"$error":"#N/A"}}]
{"$rows_empty":7}
[null,{"$f":"LOWER(wyświetl_długi_okres)","v":"marzec"}]
[null,{"$f":"wyświetl_długi_okres & \" Przychód\"","v":"marzec Przychód"},{"$f":"INDEX(Budżet!$C$6:$P$6,,okres)","v":{"v":4000,"d":"4,000 zł"}}]
[null,{"$f":"wyświetl_długi_okres & \" Wydatki: \" & TEXT(INDEX(Budżet!$C$7:$P$7,,okres),\"# ##0 zł\")","v":"marzec Wydatki: 5 933 zł"},{"$f":"INDEX(Budżet!$C$7:$P$7,,okres)","v":{"v":5933,"d":"5,933 zł"}}]
[null,{"$f":"wyświetl_długi_okres & \" przepływ gotówkowy\"","v":"marzec przepływ gotówkowy"},{"$f":"ABS(INDEX(Budżet!$C$8:$P$8,,okres))","v":{"v":1933,"d":"1,933 zł"}},{"$f":"REPT(\"-\",INDEX(Budżet!$C$8:$P$8,,okres)<0)","v":"-"}]